{"text_format":"1","workbook":"xlsx","n_sheets":2,"sheets":["Смета по разделам","СМЕТА"],"not_rendered":{"charts":0,"images":0,"macros":1,"external_links":0,"defined_names":19,"comments":0,"pivot_tables":0},"unopened":[],"bounds":{"document_bytes":16777216,"sheet_cells":100000,"rows_first":2000,"rows_last":500,"rows_between":2000,"halvings":0,"cell_chars":16384,"cell_head_chars":4096},"cells_cut":0,"cells_raw":0,"read":"whole","date_system":"1900"}

{"sheet":"Смета по разделам","index":0,"n_rows":144,"n_cols":11,"rows_kept":144,"cut":false,"hidden":false,"merged":[]}
["СМЕТНЫЙ РАСЧЕТ"]
["на проведение ремонтно-отделочных работ"]
["Наименование работ","Помещения","Кол-во","Ед.изм.","Цена за ед работы","Цена за ед мат-ла","Работа","Материал","Всего, руб."]
[]
["Пол"]
["Гидроизоляция пола в 2 слоя\n(Гидpoизoляциoнная смесь \"Глимс Водостоп\")","с/у",0,"кв.м.",0,0,{"$f":"ROUND(PRODUCT(C6:E6),0)","v":0},{"$f":"ROUND(PRODUCT(C6,F6),0)","v":0},{"$f":"SUM(G6:H6)","v":0},null,2.06]
["Проверка","-",1,"кв.м.",600,7800,{"$f":"ROUND(PRODUCT(C7:E7),0)","v":600},{"$f":"ROUND(PRODUCT(C7,F7),0)","v":7800},{"$f":"SUM(G7:H7)","v":8400}]
["Гидроизоляция пола в 1 слой\n(Гидpoизoляциoнная смесь \"Глимс Водостоп\")",null,0,"кв.м.",0,0,{"$f":"ROUND(PRODUCT(C8:E8),0)","v":0},{"$f":"ROUND(PRODUCT(C8,F8),0)","v":0},0,null,2.0699999999999998]
["Укладка шумоизоляции на пол\n(Шуманет Супер 100)",null,0,"кв.м.",0,0,0,0,0,null,2.08]
["Утепление пола пенополистиролом (ЭППС)","балкон",0,"кв.м.",0,0,0,0,0,null,2.09]
["Засыпка пола керамзитом + поливка цемент. молочком\n(керамзит, Евроцемент М500)",null,0,"кв.м.",0,0,0,0,0,null,2.1]
["Армирование стяжки\n(метал.сетка 100х100мм, вязальная проволока)","балкон",0,"кв.м.",0,0,0,0,0,null,2.11]
["Устройство мокрой стяжки с креплением демпферной ленты и установкой маяков\n(Пескобетон М300 \"Русеан\" + пластификатор + демпферная лента + оцинкованный маяк 10мм)","везде",0,"кв.м.",0,0,0,0,0,null,2.12]
["Укладка электрического теплого пола (рабочие зоны)",null,0,"кв.м.",0,0,0,0,0,null,4.03]
["Укладка плитки на пол по прямой (с затиркой швов) \n(Плиточный клей \"Knauf Fliesen\")",null,0,"кв.м.",0,0,0,0,0,null,4.04]
["Укладка плитки на пол по диагонали (с затиркой швов) \n(Плиточный клей \"Knauf Fliesen\")",null,0,"кв.м.",0,0,0,0,0,null,4.05]
["Укладка плитки на порог\n(Плиточный клей \"Knauf Fliesen\")","выход на балкон",0,"компл.",0,0,0,0,0,null,4.0599999999999996]
["Устройство подиума под душевой уголок с установкой трапа + укладка плитки на нее",null,0,"компл.",0,0,0,0,0,null,4.07]
["Устройство наливного пола (чистовое выравнивание)\n(Наливной пол \"Glims-S-Level\")","везде, кроме плитки",0,"кв.м.",0,0,0,0,0,null,4.17]
["Грунтование грунтовкой глубокого проникновения-\n - все циклы между слоями\n(Грунтовка глубокого проникновения \"Cerezit\")","пол",0,"кв.м.",0,0,0,0,0,null,5.22]
["Укладка ламината (с подложкой)","см.наливной пол",0,"кв.м.",0,0,0,0,0,null,6.11]
["Монтаж напольного плинтуса из ПВХ","везде, кроме с/у",0,"п.м.",0,0,0,0,0,null,6.12]
["Укладка паркетной доски (с подложкой), либо виниловой планки",null,0,"кв.м.",0,0,0,0,0,null,6.13]
["Монтаж напольного плинтуса (МДФ)","везде, кроме с/у",0,"п.м.",0,0,0,0,0,null,6.14]
["Укладка фанеры + шлифовка стыков",null,0,"кв.м.",0,0,0,0,0,null,6.15]
["Укладка массивной доски на клей \n(монтажный клей)",null,0,"кв.м.",0,0,0,0,0,null,6.16]
["Монтаж напольного полиуретанового плинтуса \n(поклейка + шпатлевка стыков + покраска)",null,0,"п.м.",0,0,0,0,0,null,6.17]
["Монтаж порожка","-",0,"шт.",0,0,0,0,0,null,6.18]
["Укладка ламината с порожком на порог","выход на балкон",0,"шт.",0,0,0,0,0,null,6.19]
[]
["Стены"]
["Демонтаж межкомнатных перегородок","-",0,"кв.м.",0,0,{"$f":"ROUND(PRODUCT(C32:E32),0)","v":0},{"$f":"ROUND(PRODUCT(C32,F32),0)","v":0},{"$f":"SUM(G32:H32)","v":0},null,1.3]
["Расшивка швов + пропенивание + заделка штукатуркой","-",1,"компл.",0,0,0,0,0,null,1.31]
["Возведение перегородок из газоблока толщ.100 мм с армированием кладки и монтажом перемычек\n(Газобетон 600х250х100 мм, монтажный клей, металл.сетка, арматура, дихтунгсбанд лента)","-",0,"кв.м.",0,0,0,0,0,null,1.32]
["Возведение перегородок из ПГП толщ. 80мм\n(Пазогребневая плита \"Knauf\" 667х500х80мм,  монтажный клей, металл.сетка, арматура, дихтунгсбанд лента)","-",0,"кв.м.",0,0,0,0,0,null,1.33]
["Грунтование стен бетоконтактом\n(Бетоконтакт \"Knauf\")","-",0,"кв.м.",0,0,0,0,0,null,1.36]
["Выравнивание стен штукатуркой под маяк\n(Гипсовая смесь \"Волма или Старатели\" + оцинкованный маяк 6мм)","-",0,"кв.м.",0,0,0,0,0,null,1.37]
["Устройство сантех-короба, обшивка инсталляции\n(ГКЛВ \"Knauf\" с комплектующими \"Knauf\")","с/у",0,"компл",0,0,0,0,0,null,3.1]
["Устр-во сантех-короба из ГКЛВ, прячем коммуникации\n(ГКЛВ \"Knauf\" с комплектующими \"Knauf\")","с/у",0,"компл",0,0,0,0,0,null,3.11]
["Устр-во сантех-короба из газоблока №7,прячем коммуникац.\n(Газоблок 600х250х70 мм, монтаж.клей,металл.сетка)","с/у",0,"компл",0,0,0,0,0,null,3.12]
["Установка люка-невидимки, для доступа к коммуникациям","с/у",0,"шт.",0,0,0,0,0,null,3.13]
["Установка люка (станд)-для доступа к коммуникациям\n(ревизионный станд. люк)","с/у",0,"шт.",0,0,0,0,0,null,3.14]
["Паро-гидро-утепление стен","балкон",0,"кв.м.",0,0,0,0,0,null,3.15]
["Обшивка стен газоблоком №7\n(Газоблок 600х250х70 мм, монтаж.клей,металл.сетка)","балкон",0,"кв.м.",0,0,0,0,0,null,3.16]
["Обшивка стен из ГКЛВ в 2 слоя\n(ГКЛВ \"Knauf\" с комплектующими \"Knauf\")","балкон",0,"кв.м.",0,0,0,0,0,null,3.17]
["Устройство каркаса из комплектующих \"Knauf\" + \nобшивка стены из ГКЛ \"Knauf\" в 2 слоя + \nукладка минеральной ваты + \nукладка шумоизоляции \"Тексаунд\"","-",0,"кв.м.",0,0,0,0,0,null,3.24]
["Укладка плитки на стены (с затиркой швов)\n(Плиточный клей \"Knauf Fliesen\")","с/у",0,"кв.м.",0,0,0,0,0,null,4.1100000000000003]
["Укладка \"фартука\" из плитки (с затиркой швов)\n(Плиточный клей \"Knauf Fliesen\")","кухня",0,"кв.м.",0,0,0,0,0,null,4.12]
["Укладка мозаики","-",0,"кв.м.",0,0,0,0,0,null,4.13]
["Укладка декоративного камня","-",0,"кв.м.",0,0,0,0,0,null,4.1399999999999997]
["Запил плитки под 45 град.","-",0,"п.м.",0,0,0,0,0,null,4.1500000000000004]
["Установка хромированного молдинга","-",0,"шт.",0,0,0,0,0,null,4.16]
["Шпатлевка и шлифовка стен под покраску\n(\"Ветонит LR+\" 2 слоя + паутинка + \"Шитрок\" 2 слоя)","-",0,"кв.м.",0,0,0,0,0,null,5.0999999999999996]
["Шпатлевка и шлифовка стен под обои в 2 слоя\n(\"Ветонит LR+\" 2 слоя)","-",0,"кв.м.",0,0,0,0,0,null,5.1100000000000003]
["Шпатлевка и шлифовка стен под декоративную покраску","-",0,"кв.м.",0,0,0,0,0,null,5.12]
["Покраска стен в 2-3 слоя","см.шпатлевку",0,"кв.м.",0,0,0,0,0,null,5.15]
["Декоративная покраска стен (цена зависит от вида=от 900 р/м2)","-",0,"кв.м.",0,0,0,0,0,null,5.16]
["Поклейка стен обоями (винил, флизелин)","см.шпатлевку",0,"кв.м.",0,0,0,0,0,null,5.18]
["Поклейка стен обоями + Покраска обоев в 2-3 слоя","см.шпатлевку",0,"кв.м.",0,0,0,0,0,null,5.19]
["Грунтование грунтовкой глубокого проникновения-\n - все циклы между слоями\n(Грунтовка глубокого проникновения \"Cerezit\")","стены",0,"кв.м.",0,0,0,0,0,null,5.21]
["Обшивка стен панелями ПВХ\n(каркас с комплектующими)","-",0,"кв.м.",0,0,0,0,0,null,6.07]
["Обшивка стен панелями \"Изотекс\"\n(каркас с комплектующими)","-",0,"кв.м.",0,0,0,0,0,null,6.08]
[]
["Потолок"]
["Грунтование потолка бетоконтактом\n(Бетоконтакт \"Knauf\")","-",0,"кв.м.",0,0,{"$f":"ROUND(PRODUCT(C65:E65),0)","v":0},{"$f":"ROUND(PRODUCT(C65,F65),0)","v":0},{"$f":"SUM(G65:H65)","v":0},null,1.34]
["Выравнивание потолка штукатуркой под маяк\n(Гипсовая смесь \"Волма или Старатели\" + оцинкованный маяк 6мм)","-",0,"кв.м.",0,0,0,0,0,null,1.35]
["Паро-гидро-утепление потолка","балкон",0,"кв.м.",0,0,0,0,0,null,3.18]
["Устройство подвесного потолка из ГКЛ в 2 слоя\n(ГКЛ \"Knauf\" с комплектующими \"Knauf\")","-",0,"кв.м.",0,0,0,0,0,null,3.19]
["Устройство подвесного короба из ГКЛ в 2 слоя (шир. 0,6м)\n(ГКЛ \"Knauf\" с комплектующими \"Knauf\")","над кухонной зоной",0,"п.м.",0,0,0,0,0,null,3.2]
["Устройство подвесного короба из ГКЛ в 2 слоя (шир. 0,5м)\n(ГКЛ \"Knauf\" с комплектующими \"Knauf\")","по периметру комнаты",0,"п.м.",0,0,0,0,0,null,3.21]
["Устройство подвесного короба из ГКЛ в 2 слоя (шир. 0,5м)\nс нишей под подсветку\n(ГКЛ \"Knauf\" с комплектующими \"Knauf\")","по периметру комнаты",0,"п.м.",0,0,0,0,0,null,3.22]
["Устройство торцов подвесного потолка\n(ГКЛ \"Knauf\" с комплектующими \"Knauf\")","-",0,"п.м",0,0,0,0,0,null,3.23]
["Шпатлевка и шлифовка потолка под покраску\n(\"Ветонит LR+\" 2 слоя + паутинка + \"Шитрок\" 2 слоя)","-",0,"кв.м.",0,0,0,0,0,null,5.08]
["Шпатлевка и шлифовка торцов подвесного потолка\n(\"Ветонит LR+\" 2 слоя + паутинка + \"Шитрок\" 2 слоя)","-",0,"п.м.",0,0,0,0,0,null,5.09]
["Покраска потолка в 2-3 слоя","см.шпатлевку",0,"кв.м.",0,0,0,0,0,null,5.13]
["Покраска торцов подвесного потолка в 2-3 слоя","см.шпатлевку",0,"п.м.",0,0,0,0,0,null,5.14]
["Грунтование грунтовкой глубокого проникновения-\n - все циклы между слоями\n(Грунтовка глубокого проникновения \"Cerezit\")","потолок",0,"кв.м.",0,0,0,0,0,null,5.2]
["Грунтование грунтовкой глубокого проникновения-\n- перед устр-во натяжного потолка (от пыли и грязи) \n(Грунтовка глубокого проникновения \"Cerezit\")","в местах натяжного потолка",0,"кв.м.",0,0,0,0,0,null,6.03]
["Устройство натяжного потолка из ПВХ\n(белый матовый или глянец)","-",0,"кв.м.",0,0,0,0,0,null,6.04]
["Устройство натяжного потолка\n(тканевый)","-",0,"кв.м.",0,0,0,0,0,null,6.05]
["Монтаж реечного потолка","-",0,"кв.м.",0,0,0,0,0,null,6.06]
["Монтаж потолочного карниза + Шпатлевка и шлифовка стыков + Покраска (выс.до 100 мм)","-",0,"п.м.",0,0,0,0,0,null,6.09]
["Монтаж потолочных галтелей + Шпатлевка и шлифовка стыков + Покраска","-",0,"п.м.",0,0,0,0,0,null,6.1]
[]
["Откосы, подоконники, трубы"]
["Подготовка проемов под установку межкомнатных дверей","-",0,"компл.",0,0,{"$f":"ROUND(PRODUCT(C86:E86),0)","v":0},{"$f":"ROUND(PRODUCT(C86,F86),0)","v":0},{"$f":"SUM(G86:H86)","v":0},null,2.13]
["Выравнивание откосов входной двери\n(Гипсовая смесь \"Волма\" или ГКЛ \"Knauf\")","прихожая",0,"п.м.",0,0,0,0,0,null,2.14]
["Выравнивание оконных откосов\n(Гипсовая смесь \"Волма\" или ГКЛ \"Knauf\")","откосы под покраску",0,"п.м.",0,0,0,0,0,null,2.15]
["Шпатлевка и шлифовка под покраску + Покраска в 2-3 слоя оконных откосов","откосы под покраску",0,"п.м.",0,0,0,0,0,null,5.03]
["Устройство оконных откосов из сэндвич-панелей","откосы ПВХ",0,"п.м.",0,0,0,0,0,null,5.04]
["Установка подоконника из ПВХ \n(\"Народный пластик\")","-",0,"шт.",0,0,0,0,0,null,5.05]
["Установка подоконника из ПВХ \n(\"Moeller\")","-",0,"шт.",0,0,0,0,0,null,5.0599999999999996]
["Установка подоконника из ПВХ (длин.)","балкон",0,"шт.",0,0,0,0,0,null,5.07]
["Очистка от старой краски + покраска труб отопления\n(Очиститель + Краска \"Dulux\" или \"Dufa\")","трубы",0,"п.м.",0,0,0,0,0,null,5.17]
[]
["Коммуникации"]
["Замена системы отопления:\n- установка коллекторов в квартиру;\n- замена труб отопления (коллекторная система);\n- демонтаж и монтаж радиаторов отопления.","-",1,"компл",0,0,{"$f":"ROUND(PRODUCT(C97:E97),0)","v":0},{"$f":"ROUND(PRODUCT(C97,F97),0)","v":0},{"$f":"SUM(G97:H97)","v":0},null,2.0299999999999998]
["Электромонтажные работы по всей квартире:","везде",1,"компл",0,0,{"$f":"ROUND(PRODUCT(C98:E98),0)","v":0},{"$f":"ROUND(PRODUCT(C98,F98),0)","v":0},{"$f":"SUM(G98:H98)","v":0},null,2.04]
["-штробление под кабель и подрозетники;\n-прокладка кабеля в гофре;\n-проводка кабеля по всей квартире;\n-установка подрозетников;\n-установка и сборка эл.щитка (установка автоматов, УЗО и т.п.)","Материал на электрику: Кабель - \"ВВГ-нг LS\"; кабель - TV-SAT-703; INT кабель - UTP-5; \nАвтоматы, УЗО, Дифы, Бокс(Щит) - \"Schneider\"\nПодрозетники \"Schneider\"",null,null,null,null,null,null,null,null,2.0499999999999998]
["Устройство вентиляции:\n- штробление;\n- замена вентиляц.муфт;\n- прокладка вентил.трубы 120х65мм.","кухня + с/у",1,"компл",0,0,{"$f":"ROUND(PRODUCT(C100:E100),0)","v":0},{"$f":"ROUND(PRODUCT(C100,F100),0)","v":0},{"$f":"SUM(G100:H100)","v":0},null,3.09]
["Сантехнические работы по всей квартире (полипропилен):","кухня + с/у",1,"компл",0,0,{"$f":"ROUND(PRODUCT(C101:E101),0)","v":0},{"$f":"ROUND(PRODUCT(C101,F101),0)","v":0},{"$f":"SUM(G101:H101)","v":0},null,3.03]
["- штробление под трубы;\n- разводка ГВС, ХВС и труб канализации;\n- установка коллектора;\n- установка фильтров грубой очистки;\n- установка установочных кранов.","Материал на сантехнику: Трубы из полипропилена PRO AQVA армированный d=20, 25. Коллектор \"MULTIFAR\" Италия, Фитинги, Фильтры грубой очистки;\nУстановочные краны \"ITAP\" Италия.\nКанализационные трубы d=50, 40, 32, Отводы, Тройники, Манжеты (\"Политэк\")",null,null,null,null,null,null,null,null,3.04]
["Сантехнические работы по всей квартире (\"REHAU\"):","кухня + с/у",1,"компл",0,0,{"$f":"ROUND(PRODUCT(C103:E103),0)","v":0},{"$f":"ROUND(PRODUCT(C103,F103),0)","v":0},{"$f":"SUM(G103:H103)","v":0},null,3.05]
["- штробление под трубы;\n- разводка ГВС, ХВС и труб канализации;\n- установка коллектора;\n- установка фильтров грубой очистки;\n- установка установочных кранов.","Материал на сантехнику: Трубы из сшитого полиэтилена REHAU d=20, 25. \nКоллектор \"MULTIFAR\" Италия, Фитинги, Фильтры грубой очистки;\nУстановочные краны \"ITAP\" Италия.\nКанализационные трубы d=50, 40, 32, Отводы, Тройники, Манжеты (\"Политэк\")",null,null,null,null,null,null,null,null,3.06]
["Установка системы протечки \n(Система протечки \"Нептун\")","-",0,"компл.",0,0,{"$f":"ROUND(PRODUCT(C105:E105),0)","v":0},{"$f":"ROUND(PRODUCT(C105,F105),0)","v":0},{"$f":"SUM(G105:H105)","v":0},null,3.07]
[]
["Санфаянсы, светильники и т.п."]
["Установка чугунной или акриловой ванны (с подключением)","с/у",0,"шт.",0,0,{"$f":"ROUND(PRODUCT(C108:E108),0)","v":0},{"$f":"ROUND(PRODUCT(C108,F108),0)","v":0},{"$f":"SUM(G108:H108)","v":0},null,4.08]
["Устройство экрана из ГКЛВ (на ванну)\n(ГКЛ \"Knauf\" с комплектующими \"Knauf\")","с/у",0,"компл.",0,0,0,0,0,null,4.09]
["Установка люка на магнитах (на экран)","с/у",0,"шт.",0,0,0,0,0,null,4.0999999999999996]
["Установка полотенцесушителя (с подключением)","с/у",0,"шт.",0,0,0,0,0,null,6.2]
["Установка раковины (с подключением)","с/у",0,"шт.",0,0,0,0,0,null,6.21]
["Установка раковины с тумбой (с подключением)","с/у",0,"шт.",0,0,0,0,0,null,6.22]
["Установка смесителя (с подключением)","с/у",0,"шт.",0,0,0,0,0,null,6.23]
["Установка кронштейна с лейкой (с подключением)","с/у",0,"шт.",0,0,0,0,0,null,6.24]
["Установка инсталляции унитаза","с/у",0,"компл",0,0,0,0,0,null,3.08]
["Установка унитаза (с подключением)","с/у",0,"шт.",0,0,0,0,0,null,6.25]
["Установка гигиенического душа (с подключением)","с/у",0,"шт.",0,0,0,0,0,null,6.26]
["Установка стиральной машины (с подключением)","с/у",0,"шт.",0,0,0,0,0,null,6.27]
["Установка душевой кабины (с подключением)","с/у",0,"шт.",0,0,0,0,0,null,6.28]
["Установка бойлера (с подключением)","с/у",0,"шт.",0,0,0,0,0,null,6.29]
["Установка зеркала с подсветкой","с/у",0,"шт.",0,0,0,0,0,null,6.3]
["Установка вентилятора","с/у",0,"шт.",0,0,0,0,0,null,6.31]
["Установка регулятора теплого пола","-",0,"шт.",0,0,0,0,0,null,6.32]
["Установка розеток 220В, TV, INT, выключателей","-",0,"шт.",0,0,0,0,0,null,6.33]
["Установка точечного светильника","-",0,"шт.",0,0,0,0,0,null,6.34]
["Установка подвесного светильника","-",0,"шт.",0,0,0,0,0,null,6.35]
["Установка люстры (обычной)","-",0,"шт.",0,0,0,0,0,null,6.36]
["Установка настенного светильника (БРА)","-",0,"шт.",0,0,0,0,0,null,6.37]
["Монтаж светодиодной подсветки с установкой трасформатора","-",0,"п.м.",0,0,0,0,0,null,6.38]
["Установка домофона","-",0,"шт.",0,0,0,0,0,null,6.39]
["Установка звонка","-",0,"шт.",0,0,0,0,0,null,6.4]
[]
["Общий раздел"]
["Расходный материал и инструмент (5% от общей стоимости работ)",null,0.05,"руб",{"$f":"ROUND(SUMPRODUCT(C3:C134,E3:E134),0)","v":600},0,0,{"$f":"ROUNDDOWN(C135*E135,0)","v":30},{"$f":"SUM(G135:H135)","v":30}]
["Накладные и транспортные расходы","-",1,"компл",0,0,{"$f":"ROUND(PRODUCT(C136:E136),1)","v":0},{"$f":"PRODUCT(C136,F136)","v":0},{"$f":"SUM(G136:H136)","v":0}]
[]
["Итого на работу:",null,null,null,null,null,{"$f":"E135","v":600}]
["Итого на материал:",null,null,null,null,null,null,{"$f":"ROUNDDOWN(SUMPRODUCT(C3:C134,F3:F134),0)+I135+I136","v":7830}]
[]
["-"]
["Дополнение:",null,null,null,null,null,"Примечание:"]
["Вынос мусора",null,"тонна",null,0,0]
["-"]

{"sheet":"СМЕТА","index":1,"n_rows":34,"n_cols":9,"rows_kept":34,"cut":false,"hidden":false,"merged":[]}
["СМЕТНЫЙ РАСЧЕТ"]
["на проведение ремонтно-отделочных работ"]
["Наименование работ","Помещения","Кол-во","Ед.изм.","Цена за ед работы","Цена за ед мат-ла","Работа","Материал","Всего, руб."]
[]
["Этап №1"]
["Выравнивание стен штукатуркой под маяк\n(Гипсовая смесь \"Волма или Старатели\" + оцинкованный маяк 6мм)","-",0,"кв.м.",0,0,{"$f":"ROUND(PRODUCT(C6:E6),0)","v":0},{"$f":"ROUND(PRODUCT(C6,F6),0)","v":0},{"$f":"SUM(G6:H6)","v":0}]
["Итого (этап №1):",null,null,null,null,null,{"$f":"ROUND(SUMPRODUCT(C5:C7,E5:E7),0)","v":0},{"$f":"ROUND(SUMPRODUCT(C5:C7,F5:F7),0)","v":0}]
[]
["Этап №2"]
["Выравнивание оконных откосов\n(Гипсовая смесь \"Волма\" или ГКЛ \"Knauf\")","откосы под покраску",0,"п.м.",0,0,{"$f":"ROUND(PRODUCT(C10:E10),0)","v":0},{"$f":"ROUND(PRODUCT(C10,F10),0)","v":0},{"$f":"SUM(G10:H10)","v":0}]
["Итого (этап №2):",null,null,null,null,null,{"$f":"ROUND(SUMPRODUCT(C9:C11,E9:E11),0)","v":0},{"$f":"ROUND(SUMPRODUCT(C9:C11,F9:F11),0)","v":0}]
[]
["Этап №3"]
["Устройство каркаса из комплектующих \"Knauf\" + \nобшивка стены из ГКЛ \"Knauf\" в 2 слоя + \nукладка минеральной ваты + \nукладка шумоизоляции \"Тексаунд\"","-",0,"кв.м.",0,0,{"$f":"ROUND(PRODUCT(C14:E14),0)","v":0},{"$f":"ROUND(PRODUCT(C14,F14),0)","v":0},{"$f":"SUM(G14:H14)","v":0}]
["Итого (этап №3):",null,null,null,null,null,{"$f":"ROUND(SUMPRODUCT(C13:C15,E13:E15),0)","v":0},{"$f":"ROUND(SUMPRODUCT(C13:C15,F13:F15),0)","v":0}]
[]
["Этап №4"]
["Устройство наливного пола (чистовое выравнивание)\n(Наливной пол \"Glims-S-Level\")","везде, кроме плитки",0,"кв.м.",0,0,{"$f":"ROUND(PRODUCT(C18:E18),0)","v":0},{"$f":"ROUND(PRODUCT(C18,F18),0)","v":0},{"$f":"SUM(G18:H18)","v":0}]
["Итого (этап №4):",null,null,null,null,null,{"$f":"ROUND(SUMPRODUCT(C17:C19,E17:E19),0)","v":0},{"$f":"ROUND(SUMPRODUCT(C17:C19,F17:F19),0)","v":0}]
[]
["Этап №5"]
["Грунтование грунтовкой глубокого проникновения-\n - все циклы между слоями\n(Грунтовка глубокого проникновения \"Cerezit\")","пол",0,"кв.м.",0,0,{"$f":"ROUND(PRODUCT(C22:E22),0)","v":0},{"$f":"ROUND(PRODUCT(C22,F22),0)","v":0},{"$f":"SUM(G22:H22)","v":0}]
["Итого (этап №5):",null,null,null,null,null,{"$f":"ROUND(SUMPRODUCT(C21:C23,E21:E23),0)","v":0},{"$f":"ROUND(SUMPRODUCT(C21:C23,F21:F23),0)","v":0}]
[]
["Этап №6"]
["Установка звонка","-",0,"шт.",0,0,{"$f":"ROUND(PRODUCT(C26:E26),0)","v":0},{"$f":"ROUND(PRODUCT(C26,F26),0)","v":0},{"$f":"SUM(G26:H26)","v":0}]
["Итого (этап №6):",null,null,null,null,null,{"$f":"ROUND(SUMPRODUCT(C25:C27,E25:E27),0)","v":0},{"$f":"ROUND(SUMPRODUCT(C25:C27,F25:F27),0)","v":0}]
[]
["Общий раздел"]
["Расходный материал и инструмент (5% от общей стоимости работ)",null,0.05,"руб",{"$f":"ROUND(SUMPRODUCT(C3:C29,E3:E29),0)","v":0},0,0,{"$f":"ROUNDDOWN(C30*E30,0)","v":0},{"$f":"SUM(G30:H30)","v":0}]
["Накладные и транспортные расходы","-",1,"компл",0,0,{"$f":"ROUND(PRODUCT(C31:E31),1)","v":0},{"$f":"PRODUCT(C31,F31)","v":0},{"$f":"SUM(G31:H31)","v":0}]
[]
["Итого на работу:",null,null,null,null,null,{"$f":"E30","v":0}]
["Итого на материал:",null,null,null,null,null,null,{"$f":"ROUNDDOWN(SUMPRODUCT(C3:C29,F3:F29),0)+I30+I31","v":0}]